fUST/lending_fUST_20260508
["ID","MTS","AMOUNT","RATE_DAILY","PERIOD"]
[421815330,1778183438000,-500.0,0.00010441,2]
[421815348,1778183438000,-618.51548746,0.00010441,2]
[421815350,1778183438000,-16399.30502702,0.00010442,2]
[421815344,1778183438000,-500.0,0.00010441,2]
[421815341,1778183438000,-500.0,0.00010441,2]
[421815346,1778183438000,-500.0,0.00010441,2]
[421815332,1778183438000,-500.0,0.00010441,2]
[421815334,1778183438000,-500.0,0.00010441,2]
[421815338,1778183438000,-500.0,0.00010441,2]
[421815336,1778183438000,-500.0,0.00010441,2]
[421815340,1778183438000,-500.0,0.00010441,2]
[421815327,1778183438000,-500.0,0.00010441,2]
[421815434,1778183440000,-807.09106274,0.00010442,2]
[421815450,1778183446000,-23352.90506383,0.00010442,2]
[421815464,1778183853000,152.0,0.00010513,30]
[421815466,1778184035000,-5000.0,0.00010058,2]
[421815467,1778184052000,-3935.37915699,0.00010159,2]
[421815468,1778184069000,-300.0,0.0001016,2]
[421815469,1778184087000,-457.08462036,0.00010261,2]
[421815470,1778184104000,-152.0,0.00010326,7]
[421815471,1778184122000,-152.0,0.00010326,7]
[421815472,1778184140000,-447.94292795,0.00010332,2]
[421815473,1778184158000,-300.0,0.00010337,2]
[421815513,1778184634000,-3016.41253842,0.00010059,2]
[421815512,1778184634000,-300.0,0.00010058,2]
[421815511,1778184634000,-438.9840694,9.743e-05,2]
[421815514,1778184634000,-327.0,0.00010059,2]
[421815510,1778184634000,-1329.03339218,9.425e-05,2]
[421815525,1778184638000,-17454.21783027,0.00010059,2]
[421815526,1778184638000,-5382.06751572,0.00010059,2]
[421815527,1778184638000,-3064.4651141,0.00010059,2]
[421815531,1778184638000,-54777.29542549,0.00010061,2]
[421815528,1778184638000,-2837.83700149,0.00010059,2]
[421815529,1778184638000,-25606.79029127,0.00010061,2]
[421815530,1778184638000,-898.17507457,0.00010061,2]
[421815560,1778184640000,-1071.84988445,0.00010061,2]
[421815561,1778184640000,-435.2951822,0.00010061,2]
[421815562,1778184640000,-6630.10081707,0.00010061,2]
[421815563,1778184640000,-414.12432266,0.00010061,2]
[421815578,1778184644000,-720.0,0.00010061,2]
[421815577,1778184644000,-15144.91822788,0.00010061,2]
[421815591,1778184646000,-272744.39898423,0.00010061,2]
[421815592,1778184646000,-774.79113638,0.00010061,2]
[421815743,1778185834000,-1467.73688809,9.66e-05,2]
[421815740,1778185834000,-535.83285335,9.47e-05,2]
[421815742,1778185834000,-300.0,9.659e-05,2]
[421815741,1778185834000,-446.43025856,9.566e-05,2]
[421815739,1778185834000,-2013.05918132,9.47e-05,2]
[421815737,1778185834000,-1374.65314757,9.47e-05,2]
[421815738,1778185834000,-1076.45481776,9.47e-05,2]
[421815785,1778185838000,-49940.13168805,9.66e-05,2]
[421815788,1778185838000,-243197.41355726,9.66e-05,2]
[421815763,1778185838000,-10296.86003538,9.66e-05,2]
[421815816,1778185841000,-8062.67349115,9.66e-05,2]
[421815817,1778185841000,-2433.1418704,9.66e-05,2]
[421815815,1778185841000,-865.44997912,9.66e-05,2]
[421815834,1778185847000,-25936.97707419,9.66e-05,2]
[421815833,1778185847000,-29057.86598955,9.66e-05,2]
[421815847,1778185982000,-200.0,0.00016629,120]
[421815845,1778185982000,-587.38525557,0.00016469,120]
[421815846,1778185982000,-313.20811659,0.00016492,120]
[421815844,1778185982000,-200.0,0.00016372,120]
[421815843,1778185982000,-171.41662385,0.00016323,120]
[421815842,1778185982000,-587.38525557,0.00016149,120]
[421815840,1778185982000,-2042.48879103,0.00016038,120]
[421815841,1778185982000,-2042.48879103,0.00016122,120]
[421815838,1778185982000,-2042.48879103,0.0001587,120]
[421815836,1778185982000,-294.37464747,0.00015654,120]
[421815837,1778185982000,-2042.48879103,0.00015786,120]
[421815835,1778185982000,-294.37464747,0.00015393,120]
[421815839,1778185982000,-2042.48879103,0.00015954,120]
[421815848,1778185982000,-200.0,0.00016706,120]
[421815856,1778185982000,-200.0,0.00017811,120]
[421815849,1778185982000,-200.0,0.00017044,120]
[421815862,1778185982000,-200.0,0.0001815,120]
[421815863,1778185982000,-200.0,0.0001819,120]
[421815861,1778185982000,-200.0,0.00018084,120]
[421815860,1778185982000,-161.82690213,0.00018,120]
[421815851,1778185982000,-200.0,0.00017114,120]
[421815859,1778185982000,-200.0,0.00017977,120]
[421815857,1778185982000,-200.0,0.0001785,120]
[421815853,1778185982000,-200.0,0.00017416,120]
[421815854,1778185982000,-200.0,0.00017477,120]
[421815855,1778185982000,-200.0,0.0001757,120]
[421815852,1778185982000,-200.0,0.00017391,120]
[421815850,1778185982000,-200.0,0.00017057,120]
[421815858,1778185982000,-200.0,0.00017977,120]
[421815868,1778185983000,-200.0,0.00018598,120]
[421815864,1778185983000,-200.0,0.00018237,120]
[421815865,1778185983000,-200.0,0.00018272,120]
[421815866,1778185983000,-200.0,0.0001845,120]
[421815867,1778185983000,-200.0,0.00018573,120]
[421815871,1778185983000,-200.0,0.00018776,120]
[421815869,1778185983000,-200.0,0.00018618,120]
[421815872,1778185983000,-200.0,0.00018781,120]
[421815870,1778185983000,-200.0,0.00018695,120]
[421815873,1778185983000,-200.0,0.00019076,120]
[421815874,1778185983000,-179928.65897822,0.00019178,120]
[421815875,1778186016000,428.55230677,0.00015739,120]
[421815876,1778186017000,428.55230677,0.00016015,120]
[421816189,1778187041000,-500.0,0.00010439,2]
[421816197,1778187041000,-500.0,0.00010439,2]
[421816196,1778187041000,-500.0,0.00010439,2]
[421816188,1778187041000,-500.0,0.00010439,2]
[421816187,1778187041000,-500.0,0.00010439,2]
[421816185,1778187041000,-500.0,0.00010439,2]
[421816186,1778187041000,-500.0,0.00010439,2]
[421816184,1778187041000,-500.0,0.00010439,2]
[421816178,1778187041000,-10619.3707749,0.0001013,2]
[421816181,1778187041000,-591.30546067,0.00010402,2]
[421816182,1778187041000,-500.0,0.00010439,2]
[421816190,1778187041000,-500.0,0.00010439,2]
[421816177,1778187041000,-4725.7377643,9.892e-05,2]
[421816176,1778187041000,-300.0,9.891e-05,2]
[421816174,1778187041000,-5000.0,9.183e-05,2]
[421816183,1778187041000,-261.86524831,0.00010439,2]
[421816175,1778187041000,-446.63334097,9.347e-05,2]
[421816179,1778187041000,-3106.11442157,0.00010337,2]
[421816191,1778187041000,-168.9517238,0.00010439,2]
[421816180,1778187041000,-591.3054607,0.00010341,2]
[421816195,1778187041000,-537.80520187,0.00010439,2]
[421816194,1778187041000,-500.0,0.00010439,2]
[421816207,1778187041000,-500.0,0.00010439,2]
[421816214,1778187041000,-500.0,0.00010439,2]
[421816213,1778187041000,-500.0,0.00010439,2]
[421816210,1778187041000,-500.0,0.00010439,2]
[421816211,1778187041000,-500.0,0.00010439,2]
[421816209,1778187041000,-500.0,0.00010439,2]
[421816208,1778187041000,-500.0,0.00010439,2]
[421816206,1778187041000,-647.75267703,0.00010439,2]
[421816212,1778187041000,-500.0,0.00010439,2]
[421816203,1778187041000,-500.0,0.00010439,2]
[421816204,1778187041000,-500.0,0.00010439,2]
[421816202,1778187041000,-500.0,0.00010439,2]
[421816201,1778187041000,-292.70063837,0.00010439,2]
[421816199,1778187041000,-500.0,0.00010439,2]
[421816200,1778187041000,-500.0,0.00010439,2]
[421816198,1778187041000,-500.0,0.00010439,2]
[421816193,1778187041000,-500.0,0.00010439,2]
[421816205,1778187041000,-500.0,0.00010439,2]
[421816192,1778187041000,-500.0,0.00010439,2]
[421816256,1778187042000,-151.0,0.00010957,2]
[421816264,1778187042000,-500.0,0.00010958,2]
[421816260,1778187042000,-500.0,0.00010958,2]
[421816258,1778187042000,-500.0,0.00010958,2]
[421816254,1778187042000,-155.0,0.00010957,2]
[421816253,1778187042000,-500.0,0.00010957,2]
[421816246,1778187042000,-5471.73261177,0.00010728,2]
[421816252,1778187042000,-7447.63605491,0.00010918,2]
[421816249,1778187042000,-420.0,0.0001088,2]
[421816257,1778187042000,-155.0,0.00010957,2]
[421816244,1778187042000,-500.0,0.00010683,2]
[421816259,1778187042000,-500.0,0.00010958,2]
[421816251,1778187042000,-7469.93954116,0.00010887,2]
[421816263,1778187042000,-500.0,0.00010958,2]
[421816273,1778187042000,-500.0,0.00010958,2]
[421816261,1778187042000,-500.0,0.00010958,2]
[421816265,1778187042000,-500.0,0.00010958,2]
[421816266,1778187042000,-500.0,0.00010958,2]
[421816269,1778187042000,-500.0,0.00010958,2]
[421816267,1778187042000,-500.0,0.00010958,2]
[421816268,1778187042000,-500.0,0.00010958,2]
[421816271,1778187042000,-500.0,0.00010958,2]
[421816276,1778187042000,-1368.0458,0.00010958,2]
[421816274,1778187042000,-500.0,0.00010958,2]
[421816283,1778187042000,-500.0,0.00010958,2]
[421816275,1778187042000,-500.0,0.00010958,2]
[421816282,1778187042000,-500.0,0.00010958,2]
[421816247,1778187042000,-500.0,0.00010753,2]
[421816262,1778187042000,-500.0,0.00010958,2]
[421816255,1778187042000,-155.0,0.00010957,2]
[421816222,1778187042000,-500.0,0.00010439,2]
[421816243,1778187042000,-500.0,0.00010683,2]
[421816216,1778187042000,-500.0,0.00010439,2]
[421816215,1778187042000,-462.35146909,0.00010439,2]
[421816217,1778187042000,-500.0,0.00010439,2]
[421816219,1778187042000,-500.0,0.00010439,2]
[421816220,1778187042000,-500.0,0.00010439,2]
[421816218,1778187042000,-500.0,0.00010439,2]
[421816277,1778187042000,-500.0,0.00010958,2]
[421816229,1778187042000,-607.9702902,0.00010441,2]
[421816221,1778187042000,-500.0,0.00010439,2]
[421816223,1778187042000,-339.61941294,0.00010439,2]
[421816224,1778187042000,-500.0,0.00010439,2]
[421816226,1778187042000,-207.49832059,0.00010441,2]
[421816225,1778187042000,-272503.2004471,0.0001044,2]
[421816245,1778187042000,-266.31975761,0.00010683,2]
[421816228,1778187042000,-829.99328235,0.00010441,2]
[421816230,1778187042000,-1867.48488529,0.00010441,2]
[421816232,1778187042000,-2431.88116079,0.00010441,2]
[421816234,1778187042000,-591.30546067,0.00010462,2]
[421816233,1778187042000,-3319.9731294,0.00010444,2]
[421816231,1778187042000,-1367.93315294,0.00010441,2]
[421816242,1778187042000,-500.0,0.00010683,2]
[421816235,1778187042000,-591.30546067,0.00010523,2]
[421816236,1778187042000,-3799.81431373,0.00010539,2]
[421816237,1778187042000,-591.30546067,0.00010583,2]
[421816240,1778187042000,-394655.40211074,0.00010667,2]
[421816238,1778187042000,-2444.9437936,0.0001062,2]
[421816239,1778187042000,-5187.45801469,0.00010665,2]
[421816241,1778187042000,-500.0,0.00010683,2]
[421816227,1778187042000,-151.99257255,0.00010441,2]
[421816281,1778187042000,-500.0,0.00010958,2]
[421816270,1778187042000,-500.0,0.00010958,2]
[421816280,1778187042000,-695.02,0.00010958,2]
[421816332,1778187042000,-500.0,0.00010958,2]
[421816322,1778187042000,-500.0,0.00010958,2]
[421816325,1778187042000,-500.0,0.00010958,2]
[421816331,1778187042000,-500.0,0.00010958,2]
[421816327,1778187042000,-500.0,0.00010958,2]
[421816329,1778187042000,-500.0,0.00010958,2]
[421816328,1778187042000,-500.0,0.00010958,2]
[421816330,1778187042000,-500.0,0.00010958,2]
[421816334,1778187042000,-641.48305469,0.00010958,2]
[421816345,1778187042000,-500.0,0.00010958,2]
[421816344,1778187042000,-500.0,0.00010958,2]
[421816346,1778187042000,-500.0,0.00010958,2]
[421816333,1778187042000,-500.0,0.00010958,2]
[421816335,1778187042000,-500.0,0.00010958,2]
[421816347,1778187042000,-252.55551177,0.00010958,2]
[421816342,1778187042000,-500.0,0.00010958,2]
[421816337,1778187042000,-500.0,0.00010958,2]
[421816338,1778187042000,-708.07,0.00010958,2]
[421816339,1778187042000,-500.0,0.00010958,2]
[421816341,1778187042000,-500.0,0.00010958,2]
[421816340,1778187042000,-500.0,0.00010958,2]
[421816343,1778187042000,-500.0,0.00010958,2]
[421816348,1778187042000,-500.0,0.00010958,2]
[421816350,1778187042000,-500.0,0.00010958,2]
[421816351,1778187042000,-500.0,0.00010958,2]
[421816355,1778187042000,-990.88,0.00010958,2]
[421816353,1778187042000,-500.0,0.00010958,2]
[421816352,1778187042000,-500.0,0.00010958,2]
[421816354,1778187042000,-500.0,0.00010958,2]
[421816323,1778187042000,-463.16297167,0.00010958,2]
[421816326,1778187042000,-500.0,0.00010958,2]
[421816279,1778187042000,-500.0,0.00010958,2]
[421816321,1778187042000,-500.0,0.00010958,2]
[421816324,1778187042000,-500.0,0.00010958,2]
[421816278,1778187042000,-500.0,0.00010958,2]
[421816284,1778187042000,-500.0,0.00010958,2]
[421816286,1778187042000,-500.0,0.00010958,2]
[421816285,1778187042000,-500.0,0.00010958,2]
[421816289,1778187042000,-500.0,0.00010958,2]
[421816290,1778187042000,-500.0,0.00010958,2]
[421816296,1778187042000,-500.0,0.00010958,2]
[421816294,1778187042000,-500.0,0.00010958,2]
[421816295,1778187042000,-588.03,0.00010958,2]
[421816292,1778187042000,-500.0,0.00010958,2]
[421816287,1778187042000,-500.0,0.00010958,2]
[421816297,1778187042000,-281.1794163,0.00010958,2]
[421816288,1778187042000,-500.0,0.00010958,2]
[421816291,1778187042000,-151.0,0.00010958,2]
[421816299,1778187042000,-500.0,0.00010958,2]
[421816298,1778187042000,-500.0,0.00010958,2]
[421816312,1778187042000,-500.0,0.00010958,2]
[421816310,1778187042000,-500.0,0.00010958,2]
[421816319,1778187042000,-500.0,0.00010958,2]
[421816317,1778187042000,-500.0,0.00010958,2]
[421816314,1778187042000,-423.91669659,0.00010958,2]
[421816316,1778187042000,-500.0,0.00010958,2]
[421816320,1778187042000,-500.0,0.00010958,2]
[421816306,1778187042000,-500.0,0.00010958,2]
[421816304,1778187042000,-500.0,0.00010958,2]
[421816349,1778187042000,-500.0,0.00010958,2]
[421816300,1778187042000,-500.0,0.00010958,2]
[421816302,1778187042000,-500.0,0.00010958,2]
[421816308,1778187042000,-500.0,0.00010958,2]
[421816397,1778187043000,-435.56582206,0.00010958,2]
[421816403,1778187043000,-500.0,0.00010958,2]
[421816402,1778187043000,-500.0,0.00010958,2]
[421816398,1778187043000,-578.85,0.00010958,2]
[421816394,1778187043000,-500.0,0.00010958,2]
[421816401,1778187043000,-500.0,0.00010958,2]
[421816393,1778187043000,-500.0,0.00010958,2]
[421816395,1778187043000,-500.0,0.00010958,2]
[421816400,1778187043000,-500.0,0.00010958,2]
[421816390,1778187043000,-500.0,0.00010958,2]
[421816392,1778187043000,-500.0,0.00010958,2]
[421816413,1778187043000,-500.0,0.00010958,2]
[421816396,1778187043000,-500.0,0.00010958,2]
[421816414,1778187043000,-573.58,0.00010958,2]
[421816418,1778187043000,-500.0,0.00010958,2]
[421816409,1778187043000,-500.0,0.00010958,2]
[421816421,1778187043000,-500.0,0.00010958,2]
[421816399,1778187043000,-500.0,0.00010958,2]
[421816416,1778187043000,-500.0,0.00010958,2]
[421816427,1778187043000,-500.0,0.00010958,2]
[421816430,1778187043000,-500.0,0.00010958,2]
[421816417,1778187043000,-500.0,0.00010958,2]
[421816406,1778187043000,-500.0,0.00010958,2]
[421816411,1778187043000,-500.0,0.00010958,2]
[421816405,1778187043000,-500.0,0.00010958,2]
[421816415,1778187043000,-500.0,0.00010958,2]
[421816410,1778187043000,-500.0,0.00010958,2]
[421816412,1778187043000,-500.0,0.00010958,2]
[421816404,1778187043000,-500.0,0.00010958,2]
[421816407,1778187043000,-839.92,0.00010958,2]
[421816408,1778187043000,-500.0,0.00010958,2]
[421816389,1778187043000,-376.2225277,0.00010958,2]
[421816377,1778187043000,-1201.2145,0.00010958,2]
[421816388,1778187043000,-207.18121185,0.00010958,2]
[421816360,1778187043000,-500.0,0.00010958,2]
[421816359,1778187043000,-500.0,0.00010958,2]
[421816420,1778187043000,-500.0,0.00010958,2]
[421816356,1778187043000,-500.0,0.00010958,2]
[421816358,1778187043000,-296.8641205,0.00010958,2]
[421816362,1778187043000,-500.0,0.00010958,2]
[421816373,1778187043000,-500.0,0.00010958,2]
[421816372,1778187043000,-500.0,0.00010958,2]
[421816361,1778187043000,-262.83474243,0.00010958,2]
[421816366,1778187043000,-1773.21,0.00010958,2]
[421816363,1778187043000,-500.0,0.00010958,2]
[421816364,1778187043000,-500.0,0.00010958,2]
[421816370,1778187043000,-500.0,0.00010958,2]
[421816367,1778187043000,-500.0,0.00010958,2]
[421816371,1778187043000,-500.0,0.00010958,2]
[421816365,1778187043000,-500.0,0.00010958,2]
[421816369,1778187043000,-500.0,0.00010958,2]
[421816380,1778187043000,-500.0,0.00010958,2]
[421816382,1778187043000,-500.0,0.00010958,2]
[421816379,1778187043000,-500.0,0.00010958,2]
[421816381,1778187043000,-500.0,0.00010958,2]
[421816383,1778187043000,-500.0,0.00010958,2]
[421816384,1778187043000,-500.0,0.00010958,2]
[421816391,1778187043000,-500.0,0.00010958,2]
[421816385,1778187043000,-500.0,0.00010958,2]
[421816386,1778187043000,-500.0,0.00010958,2]
[421816375,1778187043000,-500.0,0.00010958,2]
[421816374,1778187043000,-500.0,0.00010958,2]
[421816376,1778187043000,-500.0,0.00010958,2]
[421816378,1778187043000,-395.47931736,0.00010958,2]
[421816368,1778187043000,-225.93953076,0.00010958,2]
[421816387,1778187043000,-500.0,0.00010958,2]
[421816357,1778187043000,-500.0,0.00010958,2]
[421816423,1778187043000,-500.0,0.00010958,2]
[421816424,1778187043000,-1617.2,0.00010958,2]
[421816463,1778187043000,-500.0,0.00010958,2]
[421816467,1778187043000,-846.14,0.00010958,2]
[421816469,1778187043000,-500.0,0.00010958,2]
[421816468,1778187043000,-500.0,0.00010958,2]
[421816470,1778187043000,-351.98782474,0.00010958,2]
[421816471,1778187043000,-500.0,0.00010958,2]
[421816465,1778187043000,-500.0,0.00010958,2]
[421816464,1778187043000,-500.0,0.00010958,2]
[421816466,1778187043000,-500.0,0.00010958,2]
[421816485,1778187043000,-500.0,0.00010958,2]
[421816486,1778187043000,-500.0,0.00010958,2]
[421816475,1778187043000,-500.0,0.00010958,2]
[421816487,1778187043000,-500.0,0.00010958,2]
[421816474,1778187043000,-500.0,0.00010958,2]
[421816462,1778187043000,-500.0,0.00010958,2]
[421816483,1778187043000,-500.0,0.00010958,2]
[421816484,1778187043000,-500.0,0.00010958,2]
[421816479,1778187043000,-500.0,0.00010958,2]
[421816476,1778187043000,-500.0,0.00010958,2]
[421816477,1778187043000,-1511.23,0.00010958,2]
[421816478,1778187043000,-500.0,0.00010958,2]
[421816481,1778187043000,-500.0,0.00010958,2]
[421816482,1778187043000,-500.0,0.00010958,2]
[421816488,1778187043000,-598.91,0.00010958,2]
[421816491,1778187043000,-500.0,0.00010958,2]
[421816489,1778187043000,-500.0,0.00010958,2]
[421816490,1778187043000,-500.0,0.00010958,2]
[421816493,1778187043000,-500.0,0.00010958,2]
[421816432,1778187043000,-500.0,0.00010958,2]
[421816494,1778187043000,-500.0,0.00010958,2]
[421816480,1778187043000,-500.0,0.00010958,2]
[421816472,1778187043000,-468.90798288,0.00010958,2]
[421816492,1778187043000,-500.0,0.00010958,2]
[421816461,1778187043000,-1592.09,0.00010958,2]
[421816473,1778187043000,-500.0,0.00010958,2]
[421816419,1778187043000,-187.71856418,0.00010958,2]
[421816422,1778187043000,-477.73250152,0.00010958,2]
[421816433,1778187043000,-611.86853044,0.00010958,2]
[421816435,1778187043000,-500.0,0.00010958,2]
[421816437,1778187043000,-500.0,0.00010958,2]
[421816436,1778187043000,-500.0,0.00010958,2]
[421816441,1778187043000,-653.48,0.00010958,2]
[421816444,1778187043000,-500.0,0.00010958,2]
[421816445,1778187043000,-208.25992459,0.00010958,2]
[421816442,1778187043000,-500.0,0.00010958,2]
[421816438,1778187043000,-500.0,0.00010958,2]
[421816434,1778187043000,-500.0,0.00010958,2]
[421816439,1778187043000,-500.0,0.00010958,2]
[421816440,1778187043000,-500.0,0.00010958,2]
[421816425,1778187043000,-500.0,0.00010958,2]
[421816446,1778187043000,-500.0,0.00010958,2]
[421816443,1778187043000,-500.0,0.00010958,2]
[421816456,1778187043000,-500.0,0.00010958,2]
[421816453,1778187043000,-500.0,0.00010958,2]
[421816457,1778187043000,-500.0,0.00010958,2]
[421816454,1778187043000,-500.0,0.00010958,2]
[421816452,1778187043000,-500.0,0.00010958,2]
[421816459,1778187043000,-528.63,0.00010958,2]
[421816455,1778187043000,-633.91,0.00010958,2]
[421816451,1778187043000,-500.0,0.00010958,2]
[421816447,1778187043000,-500.0,0.00010958,2]
[421816450,1778187043000,-753.76,0.00010958,2]
[421816458,1778187043000,-542.5071256,0.00010958,2]
[421816460,1778187043000,-500.0,0.00010958,2]
[421816449,1778187043000,-500.0,0.00010958,2]
[421816448,1778187043000,-500.0,0.00010958,2]
[421816538,1778187044000,-500.0,0.00010958,2]
[421816549,1778187044000,-500.0,0.00010958,2]
[421816548,1778187044000,-1965.91,0.00010958,2]
[421816547,1778187044000,-500.0,0.00010958,2]
[421816537,1778187044000,-500.0,0.00010958,2]
[421816534,1778187044000,-500.0,0.00010958,2]
[421816533,1778187044000,-500.0,0.00010958,2]
[421816535,1778187044000,-4130.57,0.00010958,2]
[421816532,1778187044000,-500.0,0.00010958,2]
[421816529,1778187044000,-500.0,0.00010958,2]
[421816536,1778187044000,-500.0,0.00010958,2]
[421816531,1778187044000,-500.0,0.00010958,2]
[421816527,1778187044000,-500.0,0.00010958,2]
[421816544,1778187044000,-1300.96,0.00010958,2]
[421816541,1778187044000,-500.0,0.00010958,2]
[421816540,1778187044000,-500.0,0.00010958,2]
[421816543,1778187044000,-500.0,0.00010958,2]
[421816545,1778187044000,-500.0,0.00010958,2]
[421816546,1778187044000,-500.0,0.00010958,2]
[421816542,1778187044000,-774.07,0.00010958,2]
[421816550,1778187044000,-538.46,0.00010958,2]
[421816551,1778187044000,-500.0,0.00010958,2]
[421816563,1778187044000,-500.0,0.00010958,2]
[421816561,1778187044000,-500.0,0.00010958,2]
[421816552,1778187044000,-500.0,0.00010958,2]
[421816553,1778187044000,-500.0,0.00010958,2]
[421816562,1778187044000,-500.0,0.00010958,2]
[421816530,1778187044000,-5388.91,0.00010958,2]
[421816539,1778187044000,-500.0,0.00010958,2]
[421816528,1778187044000,-500.0,0.00010958,2]
[421816505,1778187044000,-500.0,0.00010958,2]
[421816522,1778187044000,-290.86808743,0.00010958,2]
[421816499,1778187044000,-500.0,0.00010958,2]
[421816500,1778187044000,-500.0,0.00010958,2]
[421816496,1778187044000,-500.0,0.00010958,2]
[421816497,1778187044000,-500.0,0.00010958,2]
[421816495,1778187044000,-500.0,0.00010958,2]
[421816498,1778187044000,-500.0,0.00010958,2]
[421816502,1778187044000,-500.0,0.00010958,2]
[421816512,1778187044000,-500.0,0.00010958,2]
[421816513,1778187044000,-566.42,0.00010958,2]
[421816503,1778187044000,-457.31148463,0.00010958,2]
[421816504,1778187044000,-500.0,0.00010958,2]
[421816501,1778187044000,-500.0,0.00010958,2]
[421816507,1778187044000,-500.0,0.00010958,2]
[421816506,1778187044000,-500.0,0.00010958,2]
[421816511,1778187044000,-500.0,0.00010958,2]
[421816510,1778187044000,-500.0,0.00010958,2]
[421816508,1778187044000,-500.0,0.00010958,2]
[421816509,1778187044000,-500.0,0.00010958,2]
[421816514,1778187044000,-500.0,0.00010958,2]
[421816525,1778187044000,-500.0,0.00010958,2]
[421816515,1778187044000,-500.0,0.00010958,2]
[421816519,1778187044000,-500.0,0.00010958,2]
[421816556,1778187044000,-500.0,0.00010958,2]
[421816526,1778187044000,-500.0,0.00010958,2]
[421816517,1778187044000,-500.0,0.00010958,2]
[421816523,1778187044000,-500.0,0.00010958,2]
[421816521,1778187044000,-500.0,0.00010958,2]
[421816518,1778187044000,-500.0,0.00010958,2]
[421816520,1778187044000,-500.0,0.00010958,2]
[421816524,1778187044000,-500.0,0.00010958,2]
[421816555,1778187044000,-500.0,0.00010958,2]
[421816516,1778187044000,-500.0,0.00010958,2]
[421816559,1778187044000,-766.6,0.00010958,2]
[421816591,1778187044000,-500.0,0.00010958,2]
[421816594,1778187044000,-500.0,0.00010958,2]
[421816596,1778187044000,-500.0,0.00010958,2]
[421816595,1778187044000,-500.0,0.00010958,2]
[421816597,1778187044000,-500.0,0.00010958,2]
[421816593,1778187044000,-2911.17,0.00010958,2]
[421816600,1778187044000,-500.0,0.00010958,2]
[421816598,1778187044000,-1205.02,0.00010958,2]
[421816601,1778187044000,-1163.23,0.00010958,2]
[421816599,1778187044000,-500.0,0.00010958,2]
[421816605,1778187044000,-1067.62,0.00010958,2]
[421816607,1778187044000,-500.0,0.00010958,2]
[421816606,1778187044000,-500.0,0.00010958,2]
[421816608,1778187044000,-500.0,0.00010958,2]
[421816609,1778187044000,-4014.52,0.00010958,2]
[421816611,1778187044000,-625.7,0.00010958,2]
[421816612,1778187044000,-500.0,0.00010958,2]
[421816616,1778187044000,-500.0,0.00010958,2]
[421816614,1778187044000,-500.0,0.00010958,2]
[421816613,1778187044000,-500.0,0.00010958,2]
[421816617,1778187044000,-500.0,0.00010958,2]
[421816610,1778187044000,-500.0,0.00010958,2]
[421816615,1778187044000,-500.0,0.00010958,2]
[421816619,1778187044000,-500.0,0.00010958,2]
[421816618,1778187044000,-500.0,0.00010958,2]
[421816620,1778187044000,-500.0,0.00010958,2]
[421816623,1778187044000,-722.24,0.00010958,2]
[421816621,1778187044000,-500.0,0.00010958,2]
[421816554,1778187044000,-500.0,0.00010958,2]
[421816604,1778187044000,-500.0,0.00010958,2]
[421816603,1778187044000,-500.0,0.00010958,2]
[421816622,1778187044000,-2536.9,0.00010958,2]